fUSD/lending_fUSD_20240531
["ID","MTS","AMOUNT","RATE_DAILY","PERIOD"]
[328315999,1717158647276,-151.0,0.00032874,7]
[328316000,1717158647286,-151.0,0.00032874,7]
[328316001,1717158647295,-238.44860959,0.00032874,4]
[328316002,1717158647304,-176.42718824,0.00032874,4]
[328316003,1717158647313,-449.355655,0.00032874,7]
[328316004,1717158647322,-449.355655,0.00032874,7]
[328316005,1717158647331,-161.74528,0.00032874,7]
[328316006,1717158647341,-151.0,0.00032874,7]
[328316007,1717158647349,-175.838398,0.00032874,7]
[328316008,1717158647358,-175.838398,0.00032874,7]
[328316009,1717158647367,-280.015732,0.00032874,7]
[328316010,1717158647376,-151.0,0.00032874,7]
[328316011,1717158647386,-151.0,0.00032874,7]
[328316012,1717158647394,-151.0,0.00032874,7]
[328316013,1717158647403,-200.488253,0.00032874,7]
[328316014,1717158647412,-553.747402,0.00032874,7]
[328316015,1717158647421,-553.747402,0.00032874,7]
[328316016,1717158647430,-311.25097915,0.00032874,4]
[328316017,1717158647439,-157.08130706,0.00032874,2]
[328316018,1717158647452,-215.14591636,0.00032874,2]
[328316019,1717158647462,-781.20007045,0.00032874,4]
[328316020,1717158647471,-10000.0,0.00032874,7]
[328316021,1717158647480,-10000.0,0.00032874,7]
[328316022,1717158647489,-27899.43688236,0.00032875,4]
[328316023,1717158647499,-151.0,0.00032875,7]
[328316024,1717158647508,-151.0,0.00032875,7]
[328316025,1717158647518,-198.996422,0.00032875,7]
[328316026,1717158647527,-151.0,0.00032875,7]
[328316027,1717158647537,-206.01977,0.00032875,7]
[328316028,1717158647546,-449.355655,0.00032875,7]
[328316029,1717158647556,-449.355655,0.00032875,7]
[328316030,1717158647565,-151.0,0.00032875,7]
[328316031,1717158647574,-175.838398,0.00032875,7]
[328316032,1717158647583,-175.838398,0.00032875,7]
[328316033,1717158647593,-151.0,0.00032875,7]
[328316034,1717158647602,-151.0,0.00032875,7]
[328316035,1717158647611,-151.0,0.00032875,7]
[328316037,1717158647620,-553.747402,0.00032875,7]
[328316038,1717158647630,-553.747402,0.00032875,7]
[328316039,1717158647640,-150.0,0.00032875,7]
[328316040,1717158647648,-150.0,0.00032875,7]
[328316041,1717158647659,-10000.0,0.00032875,7]
[328316044,1717158647668,-1008.1098376,0.00032876,5]
[328316046,1717158647677,-198863.33890536,0.00032876,9]
[328316049,1717158647694,-44454.2649974,0.00032876,9]
[328316053,1717158647717,-5232.58892247,0.00032876,9]
[328316054,1717158647728,-5035.63999994,0.00032876,9]
[328316055,1717158647739,-612.90539042,0.00032876,9]
[328316056,1717158647917,-79175.09026764,0.00032876,9]
[328316060,1717158648380,-3756.41811032,0.00023332,2]
[328316104,1717159534133,-155.0,0.00013967,2]
[328316105,1717159534155,-517.38287921,0.00013968,2]
[328316106,1717159534175,-919.95672198,0.0001399,2]
[328316127,1717159831957,-687.51527312,0.00013887,2]
[328316128,1717159831967,-4431.41681888,0.00013888,2]
[328316129,1717159832032,-2168.70246213,0.00013888,2]
[328316130,1717159832103,-3738.06263077,0.00013888,2]
[328316131,1717159832268,-2760.52,0.00013888,2]
[328316132,1717159832279,-2132.32698548,0.00013888,2]
[328316133,1717159832290,-4289.42705427,0.00013888,2]
[328316134,1717159832299,-154.15186399,0.0001389,2]
[328316135,1717159832308,-345.11104325,0.00013989,2]
[328316136,1717159832317,-7323.15413047,0.0001399,2]
[328316138,1717159832326,-150.0,0.00013999,2]
[328316139,1717159832335,-30013.15591067,0.00014,2]
[328316142,1717159832346,-267.23393513,0.00014,2]
[328316165,1717159838175,-8506.55529413,0.00014,2]
[328316166,1717159838187,-31400.57507943,0.00014,2]
[328316167,1717159838199,-3879.63686404,0.00014,2]
[328316168,1717159838228,-1002.93599928,0.00014,2]
[328316169,1717159838240,-13013.0356013,0.00014,2]
[328316181,1717159840584,-1705.06082141,0.00014,2]
[328316182,1717159840595,-654.84458452,0.00014,2]
[328316183,1717159840607,-623.50525259,0.00014,2]
[328316184,1717159841517,-30374.92762248,0.00014,2]
[328316185,1717159841715,-3111.79124193,0.00014,2]
[328316186,1717159841727,-3602.21195516,0.00014,2]
[328316187,1717159841738,-4128.63986883,0.00014,2]
[328316188,1717159841749,-3933.36463944,0.00014,2]
[328316189,1717159841760,-4432.26839026,0.00014,2]
[328316190,1717159841771,-6757.96750055,0.00014,2]
[328316191,1717159841782,-40392.07785512,0.00014,2]
[328316192,1717159841793,-1617.592005,0.00014,2]
[328316193,1717159841804,-1363.68834929,0.00014,2]
[328316194,1717159841815,-2023.404,0.00014,2]
[328316195,1717159843424,-3045.75226593,0.00014,2]
[328316196,1717159843532,-1601.92641799,0.00014,2]
[328316214,1717159847965,-1162.01400948,0.00014,2]
[328316215,1717159848074,-1372.86022426,0.00014,2]
[328316216,1717159848133,-20698.6812212,0.00014,2]
[328316219,1717160602536,-1792.72807153,0.00013719,2]
[328316220,1717160602557,-412.45466168,0.0001372,2]
[328316221,1717160602577,-424.17982482,0.0001378,2]
[328316222,1717160602597,-154.15186399,0.00013782,2]
[328316223,1717160602618,-1300.08768272,0.0001388,2]
[328316224,1717160602638,-505.85074532,0.00013898,2]
[328316225,1717160602659,-150.0,0.00013899,2]
[328316226,1717160602679,-21520.0057,0.000139,2]
[328316227,1717160602699,-376.5243,0.000139,2]
[328316228,1717160602719,-2534.3595,0.000139,2]
[328316229,1717160602739,-167.6526873,0.000139,2]
[328316230,1717160602762,-154.15186399,0.000139,2]
[328316231,1717160602790,-327.68447059,0.000139,2]
[328316232,1717160602811,-5222.7473853,0.0001399,2]
[328316233,1717160602832,-410.2235979,0.0001399,2]
[328316234,1717160602854,-1063.62414582,0.00013999,5]
[328316235,1717160602878,-484182.83614339,0.00014,2]
[328316236,1717160602899,-18359.59211599,0.00014,2]
[328316237,1717160602919,-1082.48556,0.00014,2]
[328316240,1717160658011,9606.3988,0.00013782,2]
[328316241,1717160708968,200.0,0.00014,2]
[328316242,1717160742172,-1148.37375434,0.00014139,2]
[328316243,1717160742192,-327.42148466,0.00014139,2]
[328316244,1717160742215,-26.56278449,0.0001414,2]
[328316245,1717160845109,-517.38287921,0.00014139,2]
[328316246,1717160845131,-173.43721551,0.0001414,2]
[328316247,1717160845151,-188.83568811,0.00014392,2]
[328316270,1717161032070,-528.592,0.00014646,2]
[328316273,1717161032086,-17946.8162264,0.00014646,2]
[328316275,1717161032101,-1275.09803465,0.00014656,2]
[328316277,1717161032114,-412.17126416,0.00014657,2]
[328316280,1717161032128,-150.0,0.00014999,2]
[328316282,1717161032143,-241.14987128,0.00015,2]
[328316284,1717161032157,-37535.7181775,0.00015,2]
[328316287,1717161032170,-499.99,0.00016142,2]
[328316289,1717161032183,-1082.48556,0.0001643,2]
[328316292,1717161032196,-210.0,0.00016499,2]
[328316294,1717161032210,-1050.41,0.00017534,2]
[328316297,1717161032223,-210.0,0.00018149,2]
[328316299,1717161032236,-1082.48557,0.0001893,2]
[328316301,1717161032250,-1082.48556,0.0002143,2]
[328316304,1717161032264,-731.85981427,0.00023332,2]
[328316306,1717161032276,-1014.08508522,0.00023603,2]
[328316308,1717161032289,-1082.48557,0.0002393,2]
[328316311,1717161032303,-10000.0,0.00024226,2]
[328316313,1717161032316,-157.43,0.00024384,2]
[328316315,1717161032329,-160.97,0.00024384,2]
[328316316,1717161032343,-155.98,0.00024384,2]
[328316317,1717161032355,-156.11,0.00024384,2]
[328316318,1717161032368,-200.0,0.00024495,2]
[328316319,1717161032383,-150.0,0.0002451,2]
[328316320,1717161032396,-200.0,0.00024681,2]
[328316321,1717161032409,-150.493,0.00024755,2]
[328316323,1717161032421,-150.985,0.00024755,2]
[328316324,1717161032434,-150.258,0.00024755,2]
[328316325,1717161032447,-199.031,0.00024755,2]
[328316326,1717161032460,-250.0,0.00024755,2]
[328316327,1717161032473,-975.0,0.00024755,2]
[328316328,1717161032486,-1224.0,0.00024755,2]
[328316329,1717161032498,-614.0,0.00024755,2]
[328316332,1717161032511,-440.0,0.00024755,2]
[328316334,1717161032523,-871.0,0.00024755,2]
[328316336,1717161032536,-4784.062,0.00024794,2]
[328316339,1717161032549,-37971.0,0.00024794,2]
[328316341,1717161032561,-532.55,0.00025032,2]
[328316342,1717161032574,-170.0,0.00025293,2]
[328316343,1717161032587,-1031.9,0.00025412,2]
[328316344,1717161032599,-177.68,0.00025786,2]
[328316345,1717161032612,-158.88,0.00025965,2]
[328316346,1717161032626,-158.88,0.00026158,2]
[328316347,1717161032642,-429.29,0.00026179,2]
[328316348,1717161032652,-429.29,0.00026186,2]
[328316349,1717161032661,-429.29,0.00026193,2]
[328316350,1717161032670,-429.29,0.000262,2]
[328316351,1717161032680,-429.29,0.00026207,2]
[328316352,1717161032689,-429.29,0.00026213,2]
[328316353,1717161032699,-429.29,0.0002622,2]
[328316354,1717161032708,-429.29,0.00026227,2]
[328316355,1717161032935,-429.29,0.00026234,2]
[328316356,1717161032948,-429.29,0.00026241,2]
[328316357,1717161032957,-429.29,0.00026248,2]
[328316358,1717161032966,-250.0,0.0002625,2]
[328316359,1717161032976,-429.29,0.00026255,2]
[328316360,1717161032986,-627.99,0.00026257,2]
[328316361,1717161032995,-429.29,0.00026262,2]
[328316362,1717161033004,-429.29,0.00026268,2]
[328316363,1717161033013,-429.29,0.00026275,2]
[328316364,1717161033022,-429.29,0.00026282,2]
[328316365,1717161033032,-429.29,0.00026289,2]
[328316366,1717161033041,-429.29,0.00026296,2]
[328316367,1717161033050,-429.29,0.00026303,2]
[328316368,1717161033059,-429.29,0.0002631,2]
[328316369,1717161033069,-158.88,0.00026351,2]
[328316370,1717161033078,-380.1,0.0002639,2]
[328316371,1717161033087,-1082.48556,0.0002643,2]
[328316372,1717161033096,-158.88,0.00026545,2]
[328316373,1717161033106,-158.88,0.00026738,2]
[328316374,1717161033115,-158.88,0.00026931,2]
[328316375,1717161033124,-158.88,0.00027125,2]
[328316376,1717161033135,-158.88,0.00027318,2]
[328316377,1717161033144,-27393.834,0.00027794,2]
[328316378,1717161033153,-2581.0,0.000278,4]
[328316379,1717161033162,-153.73215794,0.00028052,2]
[328316380,1717161033170,-1031.9,0.00028152,2]
[328316381,1717161033179,-532.55,0.00028161,2]
[328316382,1717161033188,-23900.0,0.00028207,2]
[328316383,1717161033196,-176.84926977,0.00028454,2]
[328316384,1717161033205,-380.1,0.00028654,2]
[328316385,1717161033214,-250.0,0.00028687,2]
[328316386,1717161033223,-176.84926974,0.00028981,2]
[328316387,1717161033233,-171.21,0.00029271,2]
[328316388,1717161033242,-176.84926974,0.00029509,2]
[328316389,1717161033251,-462.6392598,0.00029587,2]
[328316390,1717161033261,-404.54575928,0.00029587,2]
[328316391,1717161033270,-501.14,0.0003,2]
[328316392,1717161033279,-176.84926974,0.00030036,10]
[328316393,1717161033288,-176.84926974,0.00030563,10]
[328316394,1717161033298,-153.73215794,0.00030626,10]
[328316395,1717161033307,-251.0,0.000308,7]
[328316396,1717161033316,-1031.9,0.00030892,2]
[328316397,1717161033326,-380.1,0.00030918,2]
[328316398,1717161033335,-376.0,0.00031,8]
[328316399,1717161033344,-176.84926974,0.00031091,10]
[328316400,1717161033353,-155.2740718,0.00031191,7]
[328316401,1717161033363,-316.38392431,0.0003123,7]
[328316402,1717161033372,-782.61360794,0.0003123,4]
[328316403,1717161033383,-532.55,0.0003129,2]
[328316404,1717161033392,-158.99557848,0.00031377,7]
[328316405,1717161033401,-414.0,0.000315,8]
[328316406,1717161033411,-500.0,0.00031506,11]
[328316407,1717161033420,-176.84926974,0.00031618,10]
[328316408,1717161033430,-1206.3982,0.000317,2]
[328316409,1717161033439,-1000.0,0.000317,2]
[328316410,1717161033448,-1000.0,0.000317,2]
[328316411,1717161033458,-2500.0,0.000317,2]
[328316412,1717161033467,-1953.0,0.000317,2]
[328316413,1717161033476,-500.0,0.0003178,12]
[328316414,1717161033485,-53666.75761276,0.000318,2]
[328316415,1717161033495,-156.11,0.0003189,2]
[328316416,1717161033504,-504.49708806,0.00032,2]
[328316417,1717161033513,-453.27407036,0.00032,4]
[328316418,1717161033522,-500.0,0.00032054,13]
[328316419,1717161033531,-176.84926974,0.00032145,10]
[328316420,1717161033540,-150.66714897,0.00032204,7]
[328316421,1717161033549,-153.82452482,0.00032219,7]
[328316422,1717161033559,-500.0,0.00032328,14]
[328316423,1717161033569,-443.77,0.00032329,2]
[328316424,1717161033579,-871.61,0.00032329,2]
[328316425,1717161033588,-416.48,0.00032329,2]
[328316426,1717161033598,-871.61,0.00032329,2]
[328316427,1717161033607,-871.61,0.00032329,2]
[328316428,1717161033617,-416.48,0.00032329,2]
[328316429,1717161033626,-871.61,0.00032329,2]
[328316430,1717161033639,-416.48,0.00032329,2]
[328316431,1717161033648,-871.61,0.00032329,2]
[328316432,1717161033657,-416.48,0.00032329,2]
[328316433,1717161033667,-719.43,0.00032329,2]
[328316434,1717161033676,-154.12680175,0.00032382,7]
[328316435,1717161033686,-339.17922691,0.00032545,4]
[328316436,1717161033695,-500.0,0.00032602,15]
[328316437,1717161033704,-500.0,0.00032611,2]
[328316438,1717161033713,-200.0,0.00032611,2]
[328316439,1717161033723,-176.84926974,0.00032673,10]
[328316440,1717161033732,-150.0,0.00032727,2]
[328316441,1717161033742,-1156.26698675,0.00032745,2]
[328316442,1717161033751,-917.7645,0.00032776,2]
[328316443,1717161033761,-2501.80827859,0.00032776,4]
[328316444,1717161033770,-155.52083164,0.00032776,2]
[328316445,1717161033780,-150.0,0.00032776,2]
[328316446,1717161033789,-251.99799962,0.00032776,2]
[328316447,1717161033799,-263.42284993,0.00032776,2]
[328316448,1717161033808,-489.53873843,0.00032776,2]
[328316449,1717161033818,-5045.86055466,0.00032776,2]
[328316450,1717161033827,-162.88994626,0.00032799,2]
[328316451,1717161033837,-500.0,0.000328,2]
[328316452,1717161033846,-160.0,0.000328,6]
[328316453,1717161033855,-487.0,0.000328,17]
[328316454,1717161033864,-1124.639888,0.000328,12]
[328316455,1717161033873,-150.0,0.000328,7]
[328316456,1717161033885,-2501.80827848,0.00032815,4]
[328316457,1717161033895,-500.0,0.00032821,3]
[328316458,1717161033907,-500.0,0.0003283,3]
[328316459,1717161033916,-500.0,0.00032838,3]
[328316460,1717161033927,-1961.17912488,0.00032844,4]
[328316461,1717161033936,-158.19,0.00032846,15]
[328316462,1717161033946,-150.5,0.00032846,15]
[328316463,1717161033956,-500.0,0.00032847,3]
[328316464,1717161033966,-2501.80827848,0.00032853,4]
[328316465,1717161033976,-150.5,0.00032856,15]
[328316466,1717161033985,-150.5,0.00032856,15]
[328316467,1717161033998,-500.0,0.00032856,3]
[328316468,1717161034007,-500.0,0.00032865,3]
[328316469,1717161034016,-188.11098375,0.00032866,2]
[328316470,1717161034027,-150.5,0.00032866,15]
[328316471,1717161034038,-150.5,0.00032866,15]
[328316472,1717161034047,-197.13,0.00032866,15]
[328316473,1717161034058,-151.0,0.00032866,2]
[328316474,1717161034067,-500.0,0.00032874,3]
[328316475,1717161034077,-573.62581338,0.00032874,4]
[328316476,1717161034086,-248.96404531,0.00032874,4]
[328316477,1717161034095,-4185.21200345,0.00032874,4]
[328316478,1717161034106,-156.05127136,0.00032874,4]
[328316479,1717161034115,-626.94963818,0.00032874,4]
[328316480,1717161034125,-727.27581775,0.00032874,4]
[328316481,1717161034137,-155.70022096,0.00032874,4]
[328316482,1717161034146,-162.45347284,0.00032874,4]
[328316483,1717161034155,-482.08692557,0.00032874,4]
[328316484,1717161034164,-452.17567874,0.00032874,4]
[328316485,1717161034174,-213.98814988,0.00032874,4]
[328316486,1717161034183,-204.78051809,0.00032874,4]
[328316487,1717161034192,-1238.61142393,0.00032874,4]
[328316488,1717161034201,-301.51466406,0.00032874,4]
[328316489,1717161034210,-5900.0,0.00032874,10]
[328316490,1717161034219,-560.85470699,0.00032874,4]
[328316491,1717161034228,-155.47561881,0.00032874,4]
[328316492,1717161034238,-156.46048382,0.00032874,4]
[328316493,1717161034247,-724.95541199,0.00032874,4]
[328316494,1717161034257,-4168.87141235,0.00032874,5]
[328316495,1717161034266,-162.76290291,0.00032874,4]
[328316496,1717161034275,-827.48757697,0.00032874,4]
[328316497,1717161034284,-281.81474394,0.00032874,4]
[328316498,1717161034294,-429.06448337,0.00032874,4]
[328316499,1717161034302,-155.35331114,0.00032874,4]
[328316500,1717161034311,-317.11697702,0.00032874,4]
[328316501,1717161034321,-446.80079403,0.00032874,4]
[328316502,1717161034331,-156.27109759,0.00032874,2]
[328316503,1717161034340,-364.93128834,0.00032874,4]
[328316504,1717161034350,-1531.67403765,0.00032874,2]
[328316505,1717161034359,-657.82936263,0.00032874,4]
[328316506,1717161034368,-573.84751848,0.00032874,4]
[328316507,1717161034378,-268.78049174,0.00032874,4]
[328316508,1717161034389,-314.34967687,0.00032874,4]
[328316509,1717161034398,-326.47685623,0.00032875,4]
[328316510,1717161034407,-504.05491881,0.00032876,5]
[328316511,1717161034417,-43100.28945487,0.00032876,11]
[328316512,1717161034668,-135769.99999993,0.00032876,11]
[328316513,1717161034771,-12328.97338316,0.00032876,11]
[328316514,1717161034783,-12099.17387017,0.00032876,11]
[328316515,1717161034794,-6863.8,0.00032876,11]
[328316516,1717161034805,-670.28116184,0.00032876,11]
[328316517,1717161034824,-1865.69249295,0.00032876,11]
[328316518,1717161034836,-2253.76645182,0.00032876,11]
[328316519,1717161034847,-522.55327531,0.00032876,11]
[328316520,1717161034858,-561.51132701,0.00032876,11]
[328316521,1717161034869,-655.60712406,0.00032876,11]
[328316522,1717161034881,-1114.24720997,0.00032876,11]
[328316523,1717161034893,-1047.58741957,0.00032876,11]
[328316527,1717161038237,-1284.63354601,0.00024226,2]
[328316528,1717161038249,-409.30711013,0.00024226,2]
[328316529,1717161038260,-185930.19347983,0.00032876,11]
[328316530,1717161038270,-528.99744303,0.00032876,11]
[328316531,1717161038279,-513.06454974,0.00032876,11]
[328316532,1717161038289,-511.75708735,0.00032876,11]
[328316533,1717161038298,-500.95655316,0.00032876,11]
[328316534,1717161038307,-496.71528541,0.00032876,11]
[328316535,1717161038317,-552.37950248,0.00032876,11]
[328316536,1717161038327,-500.0,0.00032876,11]
[328316537,1717161038337,-503.88640563,0.00032876,11]
[328316538,1717161038346,-500.49134274,0.00032876,11]
[328316539,1717161038356,-531.8319871,0.00032876,4]
[328316540,1717161038366,-500.0,0.00032876,11]
[328316541,1717161038375,-500.0,0.00032876,11]
[328316542,1717161038385,-500.0,0.00032876,11]
[328316543,1717161038394,-2000.0,0.00032876,2]
[328316544,1717161038403,-200.0,0.00032876,2]
[328316545,1717161038413,-526.46889655,0.00032876,11]
[328316546,1717161038423,-500.0,0.00032876,11]
[328316547,1717161038433,-500.0,0.00032876,11]
[328316548,1717161038443,-192.06967408,0.00032876,11]
[328316549,1717161038452,-500.0,0.00032876,11]
[328316550,1717161038462,-500.0,0.00032876,11]
[328316551,1717161038471,-920.86,0.00032876,11]
[328316552,1717161038480,-500.0,0.00032876,11]
[328316553,1717161038490,-920.86,0.00032876,11]
[328316554,1717161038500,-500.0,0.00032876,11]
[328316555,1717161038509,-920.86,0.00032876,11]
[328316556,1717161038518,-920.86,0.00032876,11]
[328316557,1717161038528,-920.86,0.00032876,11]
[328316558,1717161038537,-920.86,0.00032876,11]
[328316559,1717161038546,-920.86,0.00032876,11]
[328316560,1717161038556,-920.86,0.00032876,11]
[328316561,1717161038565,-500.0,0.00032876,11]
[328316562,1717161038575,-920.86,0.00032876,11]
[328316563,1717161038585,-500.0,0.00032876,11]
[328316564,1717161038595,-500.0,0.00032876,11]
[328316565,1717161038604,-920.86,0.00032876,11]
[328316567,1717161038613,-500.0,0.00032876,11]
[328316568,1717161038622,-920.86,0.00032876,11]
[328316569,1717161038631,-920.86,0.00032876,11]
[328316571,1717161038642,-920.86,0.00032876,11]
[328316573,1717161038652,-540.17452156,0.00032876,11]
[328316575,1717161038662,-920.86,0.00032876,11]
[328316577,1717161038672,-920.86,0.00032876,11]
[328316579,1717161038682,-920.86,0.00032876,11]
[328316581,1717161038692,-920.86,0.00032876,11]
[328316582,1717161038701,-500.0,0.00032876,11]
[328316583,1717161038711,-920.86,0.00032876,11]
[328316584,1717161038720,-500.0,0.00032876,11]
[328316585,1717161038730,-920.86,0.00032876,11]
[328316586,1717161038739,-500.0,0.00032876,11]
[328316587,1717161038749,-500.0,0.00032876,11]
[328316588,1717161038759,-500.0,0.00032876,11]
[328316589,1717161038768,-500.0,0.00032876,11]
[328316590,1717161038778,-500.0,0.00032876,11]
[328316591,1717161038787,-415.30777173,0.00032876,11]
[328316592,1717161038796,-543.54071033,0.00032876,11]
[328316593,1717161038805,-500.0,0.00032876,11]
[328316594,1717161038818,-500.0,0.00032876,11]
[328316595,1717161038827,-500.0,0.00032876,11]
[328316596,1717161038836,-500.0,0.00032876,11]
[328316597,1717161038845,-500.0,0.00032876,11]
[328316598,1717161038855,-500.0,0.00032876,11]
[328316599,1717161038864,-500.0,0.00032876,11]
[328316600,1717161038873,-500.0,0.00032876,11]
[328316601,1717161038882,-500.0,0.00032876,11]
[328316602,1717161038894,-500.0,0.00032876,11]
[328316603,1717161038906,-500.0,0.00032876,11]
[328316604,1717161038919,-500.0,0.00032876,11]
[328316605,1717161038937,-516.92332214,0.00032876,11]
[328316606,1717161038946,-500.0,0.00032876,11]
[328316607,1717161038955,-500.0,0.00032876,11]
[328316608,1717161038965,-151.1549713,0.00032876,11]
[328316609,1717161038975,-500.0,0.00032876,11]
[328316610,1717161038984,-500.0,0.00032876,11]
[328316611,1717161038994,-500.0,0.00032876,11]
[328316612,1717161039003,-500.0,0.00032876,11]
[328316613,1717161039014,-500.0,0.00032876,11]
[328316614,1717161039023,-500.0,0.00032876,11]
[328316615,1717161039032,-500.0,0.00032876,11]
[328316616,1717161039042,-306.98529748,0.00032876,11]
[328316617,1717161039053,-1000.0,0.00032876,2]
[328316618,1717161039063,-1004.82164376,0.00032876,2]
[328316619,1717161039073,-500.0,0.00032876,11]
[328316620,1717161039083,-441.36499275,0.00032876,11]
[328316621,1717161039092,-500.0,0.00032876,11]
[328316622,1717161039102,-500.0,0.00032876,11]
[328316623,1717161039112,-500.0,0.00032876,11]
[328316624,1717161039122,-500.0,0.00032876,11]
[328316625,1717161039132,-500.0,0.00032876,11]
[328316626,1717161039144,-500.0,0.00032876,11]
[328316627,1717161039153,-500.0,0.00032876,11]
[328316628,1717161039163,-500.0,0.00032876,11]
[328316629,1717161039172,-500.0,0.00032876,11]
[328316630,1717161039181,-500.0,0.00032876,11]
[328316631,1717161039190,-500.0,0.00032876,11]
[328316632,1717161039200,-500.0,0.00032876,11]
[328316633,1717161039209,-500.0,0.00032876,11]
[328316634,1717161039219,-491.99,0.00032876,11]
[328316635,1717161039229,-500.0,0.00032876,11]
[328316636,1717161039239,-500.0,0.00032876,11]
[328316637,1717161039249,-500.0,0.00032876,11]
[328316638,1717161039259,-500.0,0.00032876,11]
[328316639,1717161039269,-500.0,0.00032876,11]
[328316640,1717161039279,-500.0,0.00032876,11]
[328316641,1717161039288,-195.48313995,0.00032876,11]
[328316642,1717161039298,-500.0,0.00032876,11]
[328316643,1717161039308,-500.0,0.00032876,11]
[328316644,1717161039318,-500.0,0.00032876,11]
[328316645,1717161039328,-500.0,0.00032876,11]
[328316646,1717161039338,-500.0,0.00032876,11]
[328316647,1717161039348,-500.0,0.00032876,11]
[328316648,1717161039357,-500.0,0.00032876,11]
[328316649,1717161039367,-500.0,0.00032876,11]
[328316650,1717161039377,-500.0,0.00032876,11]
[328316651,1717161039389,-496.75907461,0.00032876,11]
[328316652,1717161039398,-500.0,0.00032876,11]
[328316653,1717161039408,-500.0,0.00032876,11]
[328316654,1717161039417,-500.0,0.00032876,11]
[328316655,1717161039427,-500.0,0.00032876,11]
[328316656,1717161039437,-500.0,0.00032876,11]
[328316657,1717161039446,-500.0,0.00032876,11]
[328316658,1717161039456,-500.0,0.00032876,11]
[328316659,1717161039467,-500.0,0.00032876,11]
[328316660,1717161039477,-500.0,0.00032876,11]
[328316661,1717161039487,-643.2044938,0.00032876,11]
[328316662,1717161039497,-500.0,0.00032876,11]
[328316663,1717161039507,-500.0,0.00032876,11]
[328316664,1717161039517,-500.0,0.00032876,11]
[328316665,1717161039527,-500.0,0.00032876,11]
[328316666,1717161039536,-500.0,0.00032876,11]
[328316667,1717161039546,-500.0,0.00032876,11]
[328316668,1717161039556,-500.0,0.00032876,11]
[328316669,1717161039566,-500.0,0.00032876,11]
[328316670,1717161039576,-500.0,0.00032876,11]
[328316671,1717161039586,-500.0,0.00032876,11]
[328316672,1717161039596,-500.0,0.00032876,11]
[328316673,1717161039606,-500.0,0.00032876,11]
[328316674,1717161039616,-341.95522829,0.00032876,11]
[328316675,1717161039626,-500.0,0.00032876,11]
[328316676,1717161039636,-500.0,0.00032876,11]
[328316677,1717161039646,-500.0,0.00032876,11]
[328316678,1717161039655,-500.0,0.00032876,11]
[328316679,1717161039666,-500.0,0.00032876,11]
[328316680,1717161039675,-500.0,0.00032876,11]
[328316681,1717161039685,-331.18207212,0.00032876,11]
[328316682,1717161039695,-179.742262,0.00032876,7]
[328316683,1717161039704,-179.742262,0.00032876,7]
[328316684,1717161039714,-179.742262,0.00032876,7]
[328316685,1717161039724,-500.0,0.00032876,16]
[328316686,1717161039733,-179.742262,0.00032876,7]
[328316687,1717161039743,-640.17035091,0.00032876,11]
[328316688,1717161039753,-179.742262,0.00032876,7]
[328316689,1717161039762,-179.742262,0.00032876,7]
[328316690,1717161039772,-500.0,0.00032876,11]
[328316691,1717161039782,-179.742262,0.00032876,7]
[328316692,1717161039791,-367.57827385,0.00032876,11]
[328316693,1717161039800,-179.742262,0.00032876,7]
[328316694,1717161039810,-179.742262,0.00032876,7]
[328316695,1717161039820,-179.742262,0.00032876,7]
[328316696,1717161039829,-179.742262,0.00032876,7]